[Event "December 19 Early 2023"]
[Site "https://www.chess.com"]
[Date "2023.12.19"]
[Round "5"]
[White "Viskelis, Darius"]
[Black "Tilahun , Abel Mathewos"]
[Result "1-0"]
[Board "221"]
[TimeControl "180+1"]
[WhiteFideId "12800830"]
[BlackFideId "15702391"]
[WhiteElo "1860"]
[BlackElo "1917"]
[WhiteTeam "LTU"]
[BlackTeam "ETH"]
[WhiteClock "0:00:54"]
[BlackClock "0:00:00"]

1. e4 {[%clk 0:03:00]}  e6 {[%clk 0:02:57]} 2. d4 {[%clk 0:03:00]}  d5 {[%clk 0:02:58]} 3. e5 {[%clk 0:03:00]}  c5 {[%clk 0:02:57]} 4. c3 {[%clk 0:03:00]}  Bd7 {[%clk 0:02:56]} 5. Nf3 {[%clk 0:03:00]}  Qb6 {[%clk 0:02:56]} 6. Be2 {[%clk 0:02:55]}  cxd4 {[%clk 0:02:54]} 7. cxd4 {[%clk 0:02:48]}  Bb5 {[%clk 0:02:54]} 8. O-O {[%clk 0:02:47]}  Bxe2 {[%clk 0:02:53]} 9. Qxe2 {[%clk 0:02:47]}  Nc6 {[%clk 0:02:54]} 10. Be3 {[%clk 0:02:45]}  Nge7 {[%clk 0:02:53]} 11. Nbd2 {[%clk 0:02:42]}  Nf5 {[%clk 0:02:52]} 12. Nb3 {[%clk 0:02:42]}  Be7 {[%clk 0:02:51]} 13. g4 {[%clk 0:02:40]}  Nxe3 {[%clk 0:02:50]} 14. fxe3 {[%clk 0:02:40]}  O-O {[%clk 0:02:48]} 15. Rac1 {[%clk 0:02:36]}  f6 {[%clk 0:02:36]} 16. Nc5 {[%clk 0:02:29]}  Bxc5 {[%clk 0:02:25]} 17. dxc5 {[%clk 0:02:30]}  Qc7 {[%clk 0:02:16]} 18. exf6 {[%clk 0:02:25]}  Rxf6 {[%clk 0:02:15]} 19. Nd4 {[%clk 0:02:25]}  Raf8 {[%clk 0:02:08]} 20. Rxf6 {[%clk 0:02:16]}  Rxf6 {[%clk 0:02:07]} 21. Rf1 {[%clk 0:02:15]}  Rxf1+ {[%clk 0:01:56]} 22. Qxf1 {[%clk 0:02:14]}  Qe5 {[%clk 0:01:56]} 23. Qd3 {[%clk 0:01:46]}  h6 {[%clk 0:01:44]} 24. Kg2 {[%clk 0:01:42]}  Nb4 {[%clk 0:01:40]} 25. Qb5 {[%clk 0:01:37]}  Qe4+ {[%clk 0:01:20]} 26. Kf2 {[%clk 0:01:18]}  Nd3+ {[%clk 0:01:17]} 27. Ke2 {[%clk 0:01:19]}  Nf4+ {[%clk 0:01:12]} 28. Kd2 {[%clk 0:01:19]}  Ng2 {[%clk 0:00:55]} 29. Qe8+ {[%clk 0:01:18]}  Kh7 {[%clk 0:00:51]} 30. Qxe6 {[%clk 0:01:18]}  Qxe6 {[%clk 0:00:21]} 31. Nxe6 {[%clk 0:01:19]}  Nh4 {[%clk 0:00:19]} 32. Nd8 {[%clk 0:01:15]}  Nf3+ {[%clk 0:00:17]} 33. Kd3 {[%clk 0:01:15]}  Nxh2 {[%clk 0:00:16]} 34. Nxb7 {[%clk 0:01:15]}  Nxg4 {[%clk 0:00:16]} 35. c6 {[%clk 0:01:15]}  Ne5+ {[%clk 0:00:14]} 36. Kd4 {[%clk 0:01:15]}  Nxc6+ {[%clk 0:00:15]} 37. Kxd5 {[%clk 0:01:16]}  Ne7+ {[%clk 0:00:13]} 38. Ke5 {[%clk 0:01:09]}  h5 {[%clk 0:00:13]} 39. b4 {[%clk 0:01:06]}  g5 {[%clk 0:00:12]} 40. b5 {[%clk 0:01:03]}  h4 {[%clk 0:00:12]} 41. Ke4 {[%clk 0:01:02]}  h3 {[%clk 0:00:10]} 42. Kf3 {[%clk 0:01:02]}  Kg6 {[%clk 0:00:09]} 43. Nd6 {[%clk 0:00:58]}  Kh5 {[%clk 0:00:00]} 44. a4 {[%clk 0:00:54]} 1-0

[Event "December 19 Early 2023"]
[Site "https://www.chess.com"]
[Date "2023.12.19"]
[Round "5"]
[White "Nery Junior, Jose Antonio"]
[Black "Bogumil, Tatiana"]
[Result "1-0"]
[Board "222"]
[TimeControl "180+1"]
[WhiteFideId "2104822"]
[BlackFideId "4110579"]
[WhiteElo "2197"]
[BlackElo "1853"]
[WhiteTeam "BRA"]
[BlackTeam "RUS"]
[WhiteClock "0:00:57"]
[BlackClock "0:00:00"]

1. e4 {[%clk 0:03:00]}  d6 {[%clk 0:02:58]} 2. d4 {[%clk 0:03:00]}  g6 {[%clk 0:02:58]} 3. Nc3 {[%clk 0:02:58]}  Bg7 {[%clk 0:02:58]} 4. g3 {[%clk 0:02:57]}  c6 {[%clk 0:02:55]} 5. Bg2 {[%clk 0:02:57]}  Nf6 {[%clk 0:02:56]} 6. Nge2 {[%clk 0:02:57]}  O-O {[%clk 0:02:56]} 7. O-O {[%clk 0:02:57]}  Nfd7 {[%clk 0:02:50]} 8. h3 {[%clk 0:02:56]}  c5 {[%clk 0:02:49]} 9. Be3 {[%clk 0:02:53]}  Nc6 {[%clk 0:02:47]} 10. Qd2 {[%clk 0:02:51]}  Re8 {[%clk 0:02:29]} 11. Rad1 {[%clk 0:02:51]}  cxd4 {[%clk 0:02:20]} 12. Nxd4 {[%clk 0:02:51]}  Nde5 {[%clk 0:02:15]} 13. b3 {[%clk 0:02:46]}  Rb8 {[%clk 0:02:04]} 14. f4 {[%clk 0:02:40]}  Nd7 {[%clk 0:02:02]} 15. Nxc6 {[%clk 0:02:30]}  bxc6 {[%clk 0:01:58]} 16. Bxa7 {[%clk 0:02:30]}  Ra8 {[%clk 0:01:45]} 17. Bd4 {[%clk 0:02:23]}  e5 {[%clk 0:01:25]} 18. Be3 {[%clk 0:02:15]}  exf4 {[%clk 0:01:11]} 19. gxf4 {[%clk 0:02:16]}  Qa5 {[%clk 0:00:49]} 20. Bd4 {[%clk 0:01:59]}  Bxd4+ {[%clk 0:00:42]} 21. Qxd4 {[%clk 0:02:00]}  Qc5 {[%clk 0:00:39]} 22. a4 {[%clk 0:01:55]}  Ba6 {[%clk 0:00:22]} 23. Rfe1 {[%clk 0:01:49]}  d5 {[%clk 0:00:15]} 24. Qxc5 {[%clk 0:01:35]}  Nxc5 {[%clk 0:00:16]} 25. exd5 {[%clk 0:01:35]}  cxd5 {[%clk 0:00:10]} 26. Nxd5 {[%clk 0:01:31]}  Rxe1+ {[%clk 0:00:04]} 27. Rxe1 {[%clk 0:01:32]}  Kg7 {[%clk 0:00:02]} 28. Nc7 {[%clk 0:01:17]}  Ra7 {[%clk 0:00:01]} 29. Nxa6 {[%clk 0:01:09]}  Rxa6 {[%clk 0:00:00]} 30. Rd1 {[%clk 0:00:57]} 1-0

[Event "December 19 Early 2023"]
[Site "https://www.chess.com"]
[Date "2023.12.19"]
[Round "5"]
[White "Dilmukhametov, Artur"]
[Black "Bushonica"]
[Result "1-0"]
[Board "223"]
[TimeControl "180+1"]
[WhiteFideId "24179922"]
[WhiteElo "2176"]
[BlackElo "1920"]
[WhiteTeam "RUS"]
[WhiteClock "0:01:46"]
[BlackClock "0:00:25"]

1. e4 {[%clk 0:02:57]}  e5 {[%clk 0:02:55]} 2. Nf3 {[%clk 0:02:56]}  Nf6 {[%clk 0:02:55]} 3. Nxe5 {[%clk 0:02:56]}  Qe7 {[%clk 0:02:52]} 4. d4 {[%clk 0:02:50]}  d6 {[%clk 0:02:51]} 5. Nf3 {[%clk 0:02:48]}  Qxe4+ {[%clk 0:02:49]} 6. Qe2 {[%clk 0:02:47]}  Qxe2+ {[%clk 0:02:49]} 7. Bxe2 {[%clk 0:02:48]}  Bf5 {[%clk 0:02:48]} 8. c3 {[%clk 0:02:45]}  Nc6 {[%clk 0:02:46]} 9. O-O {[%clk 0:02:44]}  O-O-O {[%clk 0:02:44]} 10. Bg5 {[%clk 0:02:42]}  Be7 {[%clk 0:02:38]} 11. Bc4 {[%clk 0:02:42]}  d5 {[%clk 0:02:30]} 12. Bb3 {[%clk 0:02:39]}  Ne4 {[%clk 0:02:21]} 13. Bxe7 {[%clk 0:02:38]}  Nxe7 {[%clk 0:02:19]} 14. Nbd2 {[%clk 0:02:35]}  f6 {[%clk 0:02:02]} 15. Rfe1 {[%clk 0:02:27]}  c6 {[%clk 0:01:42]} 16. Nxe4 {[%clk 0:02:25]}  Bxe4 {[%clk 0:01:37]} 17. Nd2 {[%clk 0:02:23]}  f5 {[%clk 0:01:36]} 18. f3 {[%clk 0:02:23]}  Bxf3 {[%clk 0:01:32]} 19. Nxf3 {[%clk 0:02:22]}  Ng6 {[%clk 0:01:31]} 20. Ne5 {[%clk 0:02:20]}  Nxe5 {[%clk 0:01:25]} 21. Rxe5 {[%clk 0:02:21]}  Rhf8 {[%clk 0:01:23]} 22. Bc2 {[%clk 0:02:20]}  g6 {[%clk 0:01:18]} 23. Re7 {[%clk 0:02:21]}  Rd7 {[%clk 0:01:18]} 24. Rae1 {[%clk 0:02:20]}  Rf7 {[%clk 0:01:17]} 25. Rxd7 {[%clk 0:02:05]}  Kxd7 {[%clk 0:01:17]} 26. Kf2 {[%clk 0:02:06]}  Kd6 {[%clk 0:01:13]} 27. h4 {[%clk 0:02:03]}  h6 {[%clk 0:01:11]} 28. Re5 {[%clk 0:02:01]}  Rf6 {[%clk 0:01:08]} 29. Ke3 {[%clk 0:01:55]}  c5 {[%clk 0:01:01]} 30. Bb3 {[%clk 0:01:51]}  c4 {[%clk 0:00:59]} 31. Bc2 {[%clk 0:01:52]}  b5 {[%clk 0:00:56]} 32. Bd1 {[%clk 0:01:52]}  Kc6 {[%clk 0:00:53]} 33. Bf3 {[%clk 0:01:52]}  Rd6 {[%clk 0:00:53]} 34. Kf4 {[%clk 0:01:49]}  a5 {[%clk 0:00:52]} 35. g4 {[%clk 0:01:49]}  b4 {[%clk 0:00:50]} 36. gxf5 {[%clk 0:01:49]}  gxf5 {[%clk 0:00:49]} 37. Kxf5 {[%clk 0:01:49]}  b3 {[%clk 0:00:25]} 38. a3 {[%clk 0:01:46]} 1-0

[Event "December 19 Early 2023"]
[Site "https://www.chess.com"]
[Date "2023.12.19"]
[Round "5"]
[White "SulfatoFerroso"]
[Black "Kowalysko, Roman"]
[Result "0-1"]
[Board "224"]
[TimeControl "180+1"]
[BlackFideId "30918510"]
[WhiteElo "1907"]
[BlackElo "2268"]
[BlackTeam "USA"]
[WhiteClock "0:00:00"]
[BlackClock "0:01:15"]

1. e4 {[%clk 0:03:00]}  c5 {[%clk 0:02:59]} 2. d4 {[%clk 0:02:57]}  cxd4 {[%clk 0:02:59]} 3. c3 {[%clk 0:02:58]}  dxc3 {[%clk 0:02:59]} 4. Nxc3 {[%clk 0:02:59]}  Nc6 {[%clk 0:03:00]} 5. Bc4 {[%clk 0:02:59]}  e6 {[%clk 0:03:00]} 6. Nf3 {[%clk 0:02:59]}  Qc7 {[%clk 0:03:00]} 7. Qe2 {[%clk 0:02:57]}  Nf6 {[%clk 0:03:00]} 8. O-O {[%clk 0:02:56]}  Ng4 {[%clk 0:03:00]} 9. g3 {[%clk 0:02:51]}  a6 {[%clk 0:02:55]} 10. Rd1 {[%clk 0:02:43]}  Bc5 {[%clk 0:02:55]} 11. Rf1 {[%clk 0:02:25]}  b5 {[%clk 0:02:40]} 12. Bb3 {[%clk 0:02:23]}  Bb7 {[%clk 0:02:29]} 13. Bf4 {[%clk 0:02:22]}  d6 {[%clk 0:02:27]} 14. Rac1 {[%clk 0:02:20]}  Qb6 {[%clk 0:02:24]} 15. h3 {[%clk 0:02:14]}  Nge5 {[%clk 0:02:20]} 16. Rcd1 {[%clk 0:01:43]}  Rd8 {[%clk 0:02:16]} 17. Rd2 {[%clk 0:01:37]}  O-O {[%clk 0:02:04]} 18. Rfd1 {[%clk 0:01:31]}  Nxf3+ {[%clk 0:02:03]} 19. Qxf3 {[%clk 0:01:29]}  Nd4 {[%clk 0:01:57]} 20. Qh5 {[%clk 0:01:00]}  Nxb3 {[%clk 0:01:57]} 21. axb3 {[%clk 0:01:00]}  Bc6 {[%clk 0:01:37]} 22. Bxd6 {[%clk 0:00:26]}  Bxd6 {[%clk 0:01:30]} 23. Rxd6 {[%clk 0:00:26]}  Rxd6 {[%clk 0:01:27]} 24. Rxd6 {[%clk 0:00:25]}  Qb7 {[%clk 0:01:27]} 25. Qc5 {[%clk 0:00:08]}  Bxe4 {[%clk 0:01:23]} 26. Rb6 {[%clk 0:00:08]}  Qa8 {[%clk 0:01:20]} 27. Qe5 {[%clk 0:00:00]}  Bh1 {[%clk 0:01:15]} 0-1

[Event "December 19 Early 2023"]
[Site "https://www.chess.com"]
[Date "2023.12.19"]
[Round "5"]
[White "Alves Campelo, Danilo Cesar De L"]
[Black "Semenova, Alina"]
[Result "0-1"]
[Board "225"]
[TimeControl "180+1"]
[WhiteFideId "2123657"]
[BlackFideId "24113875"]
[WhiteElo "1994"]
[BlackElo "1827"]
[WhiteTeam "BRA"]
[BlackTeam "RUS"]
[WhiteClock "0:00:17"]
[BlackClock "0:01:35"]

1. e4 {[%clk 0:02:58]}  c6 {[%clk 0:02:57]} 2. Nc3 {[%clk 0:02:58]}  d5 {[%clk 0:02:57]} 3. Nf3 {[%clk 0:02:58]}  dxe4 {[%clk 0:02:55]} 4. Nxe4 {[%clk 0:02:59]}  Nf6 {[%clk 0:02:55]} 5. Ng3 {[%clk 0:02:59]}  Nbd7 {[%clk 0:02:52]} 6. Bc4 {[%clk 0:02:58]}  e6 {[%clk 0:02:52]} 7. d3 {[%clk 0:02:53]}  Bd6 {[%clk 0:02:52]} 8. Bg5 {[%clk 0:02:48]}  O-O {[%clk 0:02:52]} 9. Qe2 {[%clk 0:02:44]}  b5 {[%clk 0:02:40]} 10. Bb3 {[%clk 0:02:44]}  Bb7 {[%clk 0:02:40]} 11. a4 {[%clk 0:02:43]}  a6 {[%clk 0:02:39]} 12. O-O {[%clk 0:02:40]}  h6 {[%clk 0:02:34]} 13. Bxf6 {[%clk 0:02:40]}  Nxf6 {[%clk 0:02:35]} 14. Ne4 {[%clk 0:02:31]}  Nxe4 {[%clk 0:02:34]} 15. dxe4 {[%clk 0:02:30]}  Qc7 {[%clk 0:02:32]} 16. e5 {[%clk 0:02:27]}  Be7 {[%clk 0:02:27]} 17. Rfd1 {[%clk 0:02:26]}  Rfd8 {[%clk 0:02:27]} 18. c3 {[%clk 0:02:23]}  c5 {[%clk 0:02:26]} 19. axb5 {[%clk 0:02:23]}  axb5 {[%clk 0:02:26]} 20. Qxb5 {[%clk 0:02:20]}  Bxf3 {[%clk 0:02:23]} 21. Rxd8+ {[%clk 0:02:08]}  Rxd8 {[%clk 0:02:21]} 22. gxf3 {[%clk 0:02:04]}  Qxe5 {[%clk 0:02:22]} 23. Qf1 {[%clk 0:01:30]}  Rd2 {[%clk 0:02:08]} 24. Qg2 {[%clk 0:01:05]}  Rxb2 {[%clk 0:02:04]} 25. Ba4 {[%clk 0:00:28]}  Bh4 {[%clk 0:01:51]} 26. Rf1 {[%clk 0:00:27]}  Qxc3 {[%clk 0:01:47]} 27. Kh1 {[%clk 0:00:26]}  Qd4 {[%clk 0:01:43]} 28. Kg1 {[%clk 0:00:17]}  Bxf2+ {[%clk 0:01:35]} 0-1

[Event "December 19 Early 2023"]
[Site "https://www.chess.com"]
[Date "2023.12.19"]
[Round "6"]
[White "Carlsen, Magnus"]
[Black "Drygalov, Sergey"]
[Result "1-0"]
[Board "1"]
[TimeControl "180+1"]
[WhiteFideId "1503014"]
[BlackFideId "24171743"]
[WhiteElo "2887"]
[BlackElo "2504"]
[WhiteTeam "NOR"]
[BlackTeam "RUS"]
[WhiteClock "0:01:55"]
[BlackClock "0:00:16"]

1. Nf3 {[%clk 0:02:58]}  d5 {[%clk 0:03:00]} 2. c4 {[%clk 0:02:56]}  c6 {[%clk 0:02:59]} 3. e3 {[%clk 0:02:56]}  Nf6 {[%clk 0:02:59]} 4. Nc3 {[%clk 0:02:56]}  Nbd7 {[%clk 0:03:00]} 5. cxd5 {[%clk 0:02:55]}  Nxd5 {[%clk 0:02:59]} 6. e4 {[%clk 0:02:54]}  Nxc3 {[%clk 0:02:58]} 7. bxc3 {[%clk 0:02:52]}  e5 {[%clk 0:02:57]} 8. d4 {[%clk 0:02:53]}  exd4 {[%clk 0:02:55]} 9. cxd4 {[%clk 0:02:53]}  Bb4+ {[%clk 0:02:54]} 10. Bd2 {[%clk 0:02:53]}  Qa5 {[%clk 0:02:44]} 11. Bd3 {[%clk 0:02:52]}  O-O {[%clk 0:02:38]} 12. Rb1 {[%clk 0:02:52]}  Bxd2+ {[%clk 0:02:34]} 13. Qxd2 {[%clk 0:02:53]}  Qxd2+ {[%clk 0:02:31]} 14. Kxd2 {[%clk 0:02:54]}  Nb6 {[%clk 0:02:31]} 15. Rhc1 {[%clk 0:02:51]}  Rd8 {[%clk 0:02:28]} 16. Ke3 {[%clk 0:02:51]}  Rb8 {[%clk 0:02:24]} 17. Ne5 {[%clk 0:02:44]}  Be6 {[%clk 0:02:22]} 18. a4 {[%clk 0:02:41]}  f6 {[%clk 0:02:16]} 19. Nf3 {[%clk 0:02:41]}  Nxa4 {[%clk 0:02:13]} 20. Ra1 {[%clk 0:02:41]}  b5 {[%clk 0:01:34]} 21. Rxc6 {[%clk 0:02:41]}  Bd7 {[%clk 0:01:34]} 22. Rc7 {[%clk 0:02:37]}  a5 {[%clk 0:01:16]} 23. Ra7 {[%clk 0:02:35]}  Ra8 {[%clk 0:01:15]} 24. Rxd7 {[%clk 0:02:36]}  Rxd7 {[%clk 0:01:05]} 25. Bxb5 {[%clk 0:02:31]}  Nb6 {[%clk 0:01:05]} 26. Bxd7 {[%clk 0:02:32]}  Nxd7 {[%clk 0:01:06]} 27. Nd2 {[%clk 0:02:31]}  a4 {[%clk 0:01:04]} 28. Nc4 {[%clk 0:02:31]}  Kf7 {[%clk 0:01:04]} 29. f4 {[%clk 0:02:31]}  Ke7 {[%clk 0:01:04]} 30. Ra3 {[%clk 0:02:30]}  h5 {[%clk 0:01:02]} 31. Kd3 {[%clk 0:02:26]}  g6 {[%clk 0:00:59]} 32. Kc3 {[%clk 0:02:25]}  f5 {[%clk 0:00:59]} 33. e5 {[%clk 0:02:19]}  Ke6 {[%clk 0:00:58]} 34. Ne3 {[%clk 0:02:17]}  Nb6 {[%clk 0:00:56]} 35. Kb4 {[%clk 0:02:17]}  Rd8 {[%clk 0:00:56]} 36. Kb5 {[%clk 0:02:06]}  Nd5 {[%clk 0:00:56]} 37. Nxd5 {[%clk 0:02:05]}  Kxd5 {[%clk 0:00:56]} 38. Rxa4 {[%clk 0:02:02]}  Rb8+ {[%clk 0:00:56]} 39. Ka5 {[%clk 0:02:02]}  Rb2 {[%clk 0:00:51]} 40. h4 {[%clk 0:02:02]}  Rxg2 {[%clk 0:00:47]} 41. Kb6 {[%clk 0:02:02]}  Rc2 {[%clk 0:00:47]} 42. Ra5+ {[%clk 0:02:00]}  Kxd4 {[%clk 0:00:27]} 43. e6 {[%clk 0:02:01]}  Rc8 {[%clk 0:00:24]} 44. Re5 {[%clk 0:02:00]}  g5 {[%clk 0:00:20]} 45. hxg5 {[%clk 0:02:01]}  h4 {[%clk 0:00:21]} 46. e7 {[%clk 0:02:01]}  Re8 {[%clk 0:00:20]} 47. Kc7 {[%clk 0:02:00]}  h3 {[%clk 0:00:21]} 48. Kd7 {[%clk 0:02:01]}  h2 {[%clk 0:00:21]} 49. Re1 {[%clk 0:01:57]}  Rh8 {[%clk 0:00:18]} 50. e8=Q {[%clk 0:01:57]}  Rh7+ {[%clk 0:00:18]} 51. Kd6 {[%clk 0:01:55]}  h1=Q {[%clk 0:00:16]} 52. Qe5+ {[%clk 0:01:55]} 1-0

[Event "December 19 Early 2023"]
[Site "https://www.chess.com"]
[Date "2023.12.19"]
[Round "6"]
[White "Liascovich, Lucas"]
[Black "Haug, Havard"]
[Result "1-0"]
[Board "7"]
[TimeControl "180+1"]
[WhiteFideId "108634"]
[BlackFideId "1547887"]
[WhiteElo "2455"]
[BlackElo "2343"]
[WhiteTeam "ARG"]
[BlackTeam "NOR"]
[WhiteClock "0:01:19"]
[BlackClock "0:00:57"]

1. e4 {[%clk 0:03:00]}  c6 {[%clk 0:02:58]} 2. d4 {[%clk 0:02:53]}  d5 {[%clk 0:02:58]} 3. exd5 {[%clk 0:02:54]}  cxd5 {[%clk 0:02:58]} 4. Bd3 {[%clk 0:02:53]}  Nc6 {[%clk 0:02:57]} 5. Ne2 {[%clk 0:02:53]}  Nf6 {[%clk 0:02:51]} 6. O-O {[%clk 0:02:53]}  Bg4 {[%clk 0:02:51]} 7. f3 {[%clk 0:02:50]}  Bh5 {[%clk 0:02:51]} 8. c3 {[%clk 0:02:48]}  e6 {[%clk 0:02:51]} 9. Qe1 {[%clk 0:02:49]}  Bd6 {[%clk 0:02:51]} 10. Bg5 {[%clk 0:02:47]}  Qc7 {[%clk 0:02:45]} 11. Qh4 {[%clk 0:02:45]}  Bg6 {[%clk 0:02:26]} 12. Bxg6 {[%clk 0:02:14]}  fxg6 {[%clk 0:02:27]} 13. Bxf6 {[%clk 0:02:00]}  gxf6 {[%clk 0:02:28]} 14. Qxf6 {[%clk 0:02:01]}  Kd7 {[%clk 0:02:28]} 15. Qh4 {[%clk 0:01:59]}  Ne7 {[%clk 0:02:26]} 16. Nd2 {[%clk 0:01:53]}  Nf5 {[%clk 0:02:25]} 17. Qh3 {[%clk 0:01:53]}  Bf4 {[%clk 0:02:24]} 18. Nxf4 {[%clk 0:01:51]}  Qxf4 {[%clk 0:02:25]} 19. Nb3 {[%clk 0:01:51]}  Rae8 {[%clk 0:02:20]} 20. Rfe1 {[%clk 0:01:49]}  e5 {[%clk 0:02:04]} 21. Nc5+ {[%clk 0:01:47]}  Kc6 {[%clk 0:02:00]} 22. Nd3 {[%clk 0:01:47]}  Qd2 {[%clk 0:01:50]} 23. Nxe5+ {[%clk 0:01:47]}  Kb6 {[%clk 0:01:51]} 24. f4 {[%clk 0:01:38]}  Qxf4 {[%clk 0:01:47]} 25. Qd3 {[%clk 0:01:38]}  a6 {[%clk 0:01:40]} 26. b4 {[%clk 0:01:34]}  Nd6 {[%clk 0:01:35]} 27. a4 {[%clk 0:01:29]}  Ne4 {[%clk 0:01:29]} 28. Rf1 {[%clk 0:01:26]}  Qd2 {[%clk 0:01:23]} 29. Qxe4 {[%clk 0:01:26]}  Qxc3 {[%clk 0:01:11]} 30. Qxd5 {[%clk 0:01:25]}  Rd8 {[%clk 0:01:11]} 31. Qc5+ {[%clk 0:01:21]}  Qxc5 {[%clk 0:01:10]} 32. dxc5+ {[%clk 0:01:22]}  Ka7 {[%clk 0:01:11]} 33. Nf7 {[%clk 0:01:22]}  Rhf8 {[%clk 0:01:10]} 34. Nxd8 {[%clk 0:01:23]}  Rxd8 {[%clk 0:01:11]} 35. Rad1 {[%clk 0:01:23]}  Ra8 {[%clk 0:01:12]} 36. b5 {[%clk 0:01:23]}  Rb8 {[%clk 0:01:13]} 37. b6+ {[%clk 0:01:23]}  Ka8 {[%clk 0:01:13]} 38. Rd7 {[%clk 0:01:24]}  Rc8 {[%clk 0:01:14]} 39. Rff7 {[%clk 0:01:24]}  Rb8 {[%clk 0:01:14]} 40. a5 {[%clk 0:01:24]}  h5 {[%clk 0:01:14]} 41. h4 {[%clk 0:01:22]}  g5 {[%clk 0:01:13]} 42. Rxb7 {[%clk 0:01:20]}  Re8 {[%clk 0:01:04]} 43. Ra7+ {[%clk 0:01:20]}  Kb8 {[%clk 0:01:04]} 44. Rfb7+ {[%clk 0:01:20]}  Kc8 {[%clk 0:01:05]} 45. c6 {[%clk 0:01:19]}  Re1+ {[%clk 0:01:03]} 46. Kh2 {[%clk 0:01:19]}  g4 {[%clk 0:00:57]} 47. Ra8# {[%clk 0:01:19]} 1-0

[Event "December 19 Early 2023"]
[Site "https://www.chess.com"]
[Date "2023.12.19"]
[Round "6"]
[White "Beerdsen, Thomas"]
[Black "Le, Tuan Minh"]
[Result "1-0"]
[Board "12"]
[TimeControl "180+1"]
[WhiteFideId "1030108"]
[BlackFideId "12401153"]
[WhiteElo "2550"]
[BlackElo "2561"]
[WhiteTeam "NED"]
[BlackTeam "VIE"]
[WhiteClock "0:01:30"]
[BlackClock "0:00:05"]

1. e4 {[%clk 0:03:00]}  e5 {[%clk 0:02:58]} 2. Nc3 {[%clk 0:03:00]}  Nf6 {[%clk 0:02:57]} 3. f4 {[%clk 0:03:01]}  d5 {[%clk 0:02:54]} 4. fxe5 {[%clk 0:03:01]}  Nxe4 {[%clk 0:02:53]} 5. Nf3 {[%clk 0:03:02]}  Nc6 {[%clk 0:02:44]} 6. Bb5 {[%clk 0:03:01]}  Bg4 {[%clk 0:02:40]} 7. O-O {[%clk 0:02:55]}  Be7 {[%clk 0:02:32]} 8. h3 {[%clk 0:02:51]}  Bh5 {[%clk 0:02:31]} 9. d4 {[%clk 0:02:35]}  O-O {[%clk 0:02:29]} 10. Be3 {[%clk 0:02:34]}  f6 {[%clk 0:02:16]} 11. Qe1 {[%clk 0:02:18]}  fxe5 {[%clk 0:01:58]} 12. Bxc6 {[%clk 0:02:17]}  bxc6 {[%clk 0:01:56]} 13. Nxe5 {[%clk 0:02:16]}  Rxf1+ {[%clk 0:01:53]} 14. Qxf1 {[%clk 0:02:17]}  Nxc3 {[%clk 0:01:42]} 15. bxc3 {[%clk 0:02:16]}  Bf6 {[%clk 0:01:36]} 16. Qf5 {[%clk 0:02:11]}  Qe8 {[%clk 0:01:36]} 17. Bf4 {[%clk 0:02:06]}  Bg6 {[%clk 0:01:16]} 18. Nxg6 {[%clk 0:02:03]}  hxg6 {[%clk 0:01:17]} 19. Qd3 {[%clk 0:02:00]}  Qf7 {[%clk 0:01:16]} 20. Rf1 {[%clk 0:01:58]}  Re8 {[%clk 0:01:11]} 21. Qg3 {[%clk 0:01:57]}  Rf8 {[%clk 0:01:04]} 22. Rf3 {[%clk 0:01:52]}  Rb8 {[%clk 0:00:54]} 23. Bxc7 {[%clk 0:01:49]}  Rb2 {[%clk 0:00:54]} 24. Be5 {[%clk 0:01:44]}  Bxe5 {[%clk 0:00:17]} 25. Qxe5 {[%clk 0:01:45]}  Qd7 {[%clk 0:00:17]} 26. Rg3 {[%clk 0:01:45]}  Qf5 {[%clk 0:00:16]} 27. Qe8+ {[%clk 0:01:36]}  Kh7 {[%clk 0:00:16]} 28. Rg4 {[%clk 0:01:37]}  Qf6 {[%clk 0:00:13]} 29. Qe1 {[%clk 0:01:32]}  g5 {[%clk 0:00:10]} 30. Qc1 {[%clk 0:01:29]}  Rxa2 {[%clk 0:00:09]} 31. Rxg5 {[%clk 0:01:30]}  Rxc2 {[%clk 0:00:05]} 32. Qxc2+ {[%clk 0:01:30]} 1-0

[Event "December 19 Early 2023"]
[Site "https://www.chess.com"]
[Date "2023.12.19"]
[Round "6"]
[White "Klukin, Kirill"]
[Black "Niemann, Hans Moke"]
[Result "0-1"]
[Board "13"]
[TimeControl "180+1"]
[WhiteFideId "24199273"]
[BlackFideId "2093596"]
[WhiteElo "2348"]
[BlackElo "2614"]
[WhiteTeam "RUS"]
[BlackTeam "USA"]
[WhiteClock "0:00:03"]
[BlackClock "0:01:49"]

1. d4 {[%clk 0:02:56]}  Nf6 {[%clk 0:02:59]} 2. Nf3 {[%clk 0:02:55]}  d5 {[%clk 0:02:58]} 3. c4 {[%clk 0:02:55]}  e6 {[%clk 0:02:59]} 4. Nc3 {[%clk 0:02:55]}  Nbd7 {[%clk 0:02:58]} 5. Bg5 {[%clk 0:02:54]}  Bb4 {[%clk 0:02:58]} 6. cxd5 {[%clk 0:02:48]}  exd5 {[%clk 0:02:58]} 7. e3 {[%clk 0:02:48]}  h6 {[%clk 0:02:57]} 8. Bxf6 {[%clk 0:02:29]}  Qxf6 {[%clk 0:02:57]} 9. Bd3 {[%clk 0:02:27]}  c6 {[%clk 0:02:55]} 10. O-O {[%clk 0:02:25]}  O-O {[%clk 0:02:55]} 11. Qc2 {[%clk 0:02:20]}  Qd8 {[%clk 0:02:51]} 12. a3 {[%clk 0:02:14]}  Bd6 {[%clk 0:02:49]} 13. b4 {[%clk 0:02:15]}  a6 {[%clk 0:02:49]} 14. Rab1 {[%clk 0:02:15]}  Nf6 {[%clk 0:02:49]} 15. a4 {[%clk 0:02:12]}  b5 {[%clk 0:02:41]} 16. Ne5 {[%clk 0:02:12]}  Bxe5 {[%clk 0:02:40]} 17. dxe5 {[%clk 0:02:12]}  Ng4 {[%clk 0:02:40]} 18. Rfd1 {[%clk 0:01:37]}  Nxe5 {[%clk 0:02:40]} 19. Bf5 {[%clk 0:01:36]}  Qf6 {[%clk 0:02:35]} 20. Bxc8 {[%clk 0:01:33]}  Raxc8 {[%clk 0:02:36]} 21. Ne2 {[%clk 0:01:32]}  Nc4 {[%clk 0:02:36]} 22. Rbc1 {[%clk 0:01:27]}  Rfe8 {[%clk 0:02:36]} 23. Nd4 {[%clk 0:01:26]}  g6 {[%clk 0:02:35]} 24. Nb3 {[%clk 0:01:26]}  bxa4 {[%clk 0:02:33]} 25. Nc5 {[%clk 0:01:26]}  a3 {[%clk 0:02:34]} 26. Nxa6 {[%clk 0:00:57]}  Qb2 {[%clk 0:02:28]} 27. Qa4 {[%clk 0:00:54]}  Rxe3 {[%clk 0:02:15]} 28. Rxc4 {[%clk 0:00:23]}  Re2 {[%clk 0:02:04]} 29. Rf4 {[%clk 0:00:17]}  a2 {[%clk 0:02:01]} 30. Nc5 {[%clk 0:00:18]}  Rce8 {[%clk 0:01:59]} 31. Nd3 {[%clk 0:00:14]}  Qd2 {[%clk 0:01:52]} 32. h4 {[%clk 0:00:03]}  Re1+ {[%clk 0:01:49]} 0-1